bitfinex/quotes_BTCUSD_20250803
["timestamp","ask_amount","ask_price","bid_price","bid_amount"]
[1754207300787,7.1937629,113950.0,113940.0,0.372446]
[1754207304081,7.1937541,113950.0,113940.0,0.372446]
[1754207306422,7.18000912,113950.0,113940.0,0.372446]
[1754207307069,7.15538188,113950.0,113940.0,0.372446]
[1754207307720,7.06654432,113950.0,113940.0,0.372446]
[1754207308444,5.6720958,113950.0,113940.0,0.372446]
[1754207308663,7.06654432,113950.0,113940.0,0.372446]
[1754207309025,7.08028882,113950.0,113940.0,0.372446]
[1754207309860,7.08028429,113950.0,113940.0,0.372446]
[1754207310064,7.09498701,113950.0,113940.0,0.372446]
[1754207310257,7.08028429,113950.0,113940.0,0.372446]
[1754207310459,7.05158429,113950.0,113940.0,0.402756]
[1754207311898,7.07562429,113950.0,113940.0,0.399756]
[1754207312704,7.07566429,113950.0,113940.0,0.399756]
[1754207314340,6.94254429,113950.0,113940.0,0.399756]
[1754207314527,7.16450185,113950.0,113940.0,0.399756]
[1754207314946,7.16450185,113950.0,113940.0,0.397716]
[1754207316511,6.97173131,113950.0,113940.0,0.397716]
[1754207316942,6.88289375,113950.0,113940.0,0.397716]
[1754207317153,6.86914925,113950.0,113940.0,0.397716]
[1754207318968,6.86914925,113950.0,113940.0,0.372446]
[1754207320046,6.88289377,113950.0,113940.0,0.372446]
[1754207321480,6.88290123,113950.0,113940.0,0.372446]
[1754207321654,6.97173879,113950.0,113940.0,0.372446]
[1754207325378,6.88290123,113950.0,113940.0,0.372446]
[1754207326512,6.86915671,113950.0,113940.0,0.397716]
[1754207327284,6.85268991,113950.0,113940.0,0.397716]
[1754207327483,6.8928815,113950.0,113940.0,0.397716]
[1754207327916,6.8928815,113950.0,113940.0,0.372446]
[1754207329629,6.90662518,113950.0,113940.0,0.372446]
[1754207330266,6.90662518,113950.0,113940.0,0.397716]
[1754207332215,5.48615666,113950.0,113940.0,0.402756]
[1754207332471,6.18338092,113950.0,113940.0,0.402756]
[1754207332905,6.15966989,113950.0,113940.0,0.402756]
[1754207333109,6.15967572,113950.0,113940.0,0.402756]
[1754207334674,6.15963572,113950.0,113940.0,0.402756]
[1754207335963,5.46241146,113950.0,113940.0,0.402756]
[1754207336252,6.15963572,113950.0,113940.0,0.402756]
[1754207336894,6.0091067,113950.0,113940.0,0.402756]
[1754207337102,5.44496244,113950.0,113940.0,0.402756]
[1754207337318,6.1421867,113950.0,113940.0,0.402756]
[1754207338377,5.07856044,113950.0,113940.0,0.402756]
[1754207338588,5.7757847,113950.0,113940.0,0.402756]
[1754207338849,5.7757847,113950.0,113940.0,0.535836]
[1754207338850,6.10204102,113950.0,113940.0,0.535836]
[1754207339084,5.38582478,113950.0,113940.0,0.535836]
[1754207339280,5.38282478,113950.0,113940.0,0.535836]
[1754207339603,5.37682478,113950.0,113940.0,0.535836]
[1754207340072,5.24574478,113950.0,113940.0,0.535836]
[1754207340922,5.24574478,113950.0,113940.0,1.23306026]
[1754207341371,5.22725839,113950.0,113940.0,0.535836]
[1754207341599,5.24099974,113950.0,113940.0,0.535836]
[1754207341812,5.25746957,113950.0,113940.0,0.535836]
[1754207342024,5.24099974,113950.0,113940.0,0.535836]
[1754207342232,5.24099974,113950.0,113940.0,0.536836]
[1754207342711,5.24199974,113950.0,113940.0,0.536836]
[1754207346920,5.939224,113950.0,113940.0,0.403756]
[1754207347322,5.941204,113950.0,113940.0,0.403756]
[1754207347579,5.941204,113950.0,113940.0,0.398716]
[1754207347580,6.100544,113950.0,113940.0,0.398716]
[1754207347833,6.14457449,113950.0,113940.0,0.373446]
[1754207348658,6.14457449,113950.0,113940.0,0.372446]
[1754207348878,6.06518185,113950.0,113940.0,0.372446]
[1754207349493,6.06418185,113950.0,113940.0,0.372446]
[1754207349861,6.06320185,113950.0,113940.0,0.372446]
[1754207350884,6.03860091,113950.0,113940.0,0.372446]
[1754207353834,6.12743847,113950.0,113940.0,0.372446]
[1754207354045,6.15500941,113950.0,113940.0,0.372446]
[1754207354277,6.18141241,113950.0,113940.0,0.372446]
[1754207355735,6.16767106,113950.0,113940.0,0.372446]
[1754207356301,6.14307012,113950.0,113940.0,0.372446]
[1754207358471,6.05423256,113950.0,113940.0,0.372446]
[1754207360088,6.06797544,113950.0,113940.0,0.372446]
[1754207361033,6.06797277,113950.0,113940.0,0.372446]
[1754207363982,6.06797458,113950.0,113940.0,0.372446]
[1754207364411,6.08693983,113950.0,113940.0,0.372446]
[1754207364751,5.51874113,113950.0,113940.0,0.372446]
[1754207364938,6.08693983,113950.0,113940.0,0.372446]
[1754207365534,6.08396983,113950.0,113940.0,0.372446]
[1754207366955,6.08397132,113950.0,113940.0,0.372446]
[1754207370084,6.08694132,113950.0,113940.0,0.372446]
[1754207370865,6.16421093,113950.0,113940.0,0.372446]
[1754207371066,6.03049093,113950.0,113940.0,0.372446]
[1754207371268,6.16176093,113950.0,113940.0,0.372446]
[1754207373765,6.25059849,113950.0,113940.0,0.372446]
[1754207375687,6.16176093,113950.0,113940.0,0.372446]
[1754207378370,5.4666597,113950.0,113940.0,0.372446]
[1754207378582,6.16176093,113950.0,113940.0,0.372446]
[1754207378804,6.16176093,113950.0,113940.0,0.397566]
[1754207379008,5.42531682,113950.0,113940.0,0.402786]
[1754207379227,6.12029805,113950.0,113940.0,0.402786]
[1754207381421,6.12030961,113950.0,113940.0,0.402786]
[1754207381858,6.13405184,113950.0,113940.0,0.402786]
[1754207384176,6.10935817,113950.0,113940.0,0.402786]
[1754207384381,6.13409401,113950.0,113940.0,0.402786]
[1754207388759,6.22293157,113950.0,113940.0,0.402786]
[1754207389410,6.13409401,113950.0,113940.0,0.402786]
[1754207390183,6.13606401,113950.0,113940.0,0.402786]
[1754207392936,6.13606066,113950.0,113940.0,0.402786]
[1754207393554,6.13608408,113950.0,113940.0,0.402786]
[1754207395968,6.13608329,113950.0,113940.0,0.402786]
[1754207398603,6.12234106,113950.0,113940.0,0.402786]
[1754207399915,5.42723983,113950.0,113940.0,0.402786]
[1754207400114,6.12234106,113950.0,113940.0,0.402786]
[1754207400717,6.12234037,113950.0,113940.0,0.402786]
[1754207401257,6.13608282,113950.0,113940.0,0.402786]
[1754207405130,5.44098159,113950.0,113940.0,0.402786]
[1754207405319,6.13608282,113950.0,113940.0,0.402786]
[1754207406395,6.12234037,113950.0,113940.0,0.402786]
[1754207409173,5.94006415,113950.0,113940.0,0.402786]
[1754207409578,5.97782639,113950.0,113940.0,0.402786]
[1754207412272,5.97782536,113950.0,113940.0,0.402786]
[1754207413306,6.06666292,113950.0,113940.0,0.402786]
[1754207415208,5.97782536,113950.0,113940.0,0.402786]
[1754207415420,5.97782972,113950.0,113940.0,0.402786]
[1754207419110,5.96958471,113950.0,113940.0,0.402786]
[1754207419307,5.97782997,113950.0,113940.0,0.402786]
[1754207421313,5.97783944,113950.0,113940.0,0.402786]
[1754207421666,5.9640972,113950.0,113940.0,0.402786]
[1754207422123,5.9400772,113950.0,113940.0,0.402786]
[1754207424439,5.95381935,113950.0,113940.0,0.402786]
[1754207425903,5.25871812,113950.0,113940.0,0.402786]
[1754207426142,5.95381935,113950.0,113940.0,0.402786]
[1754207429762,5.95184935,113950.0,113940.0,0.402786]
[1754207430205,5.81772935,113950.0,113940.0,0.402786]
[1754207430454,5.95152935,113950.0,113940.0,0.402786]
[1754207430686,5.25646812,113950.0,113940.0,1.09788723]
[1754207430918,5.12262812,113950.0,113940.0,1.09788723]
[1754207431146,5.12262812,113950.0,113940.0,0.402786]
[1754207431601,5.10363111,113950.0,113940.0,0.402786]
[1754207432448,5.10363111,113950.0,113940.0,1.09788723]
[1754207432449,4.87004472,113950.0,113940.0,1.09788723]
[1754207433315,0.05313872,113950.0,113940.0,1.79298846]
[1754207433548,0.02673572,113950.0,113940.0,1.09788723]
[1754207434878,0.02473572,113950.0,113940.0,1.09788723]
[1754207435190,0.02198585,113950.0,113940.0,1.09788723]
[1754207435404,0.02198585,113950.0,113940.0,1.09888723]
[1754207435781,0.02198585,113950.0,113940.0,1.09988723]
[1754207436013,0.02198585,113950.0,113940.0,1.79498846]
[1754207436217,0.02198585,113950.0,113940.0,1.92882846]
[1754207436962,0.02198585,113950.0,113940.0,1.23372723]
[1754207437199,0.02198585,113950.0,113940.0,1.92882846]
[1754207438065,0.00824526,113950.0,113940.0,1.92882846]
[1754207438674,0.00824526,113950.0,113940.0,1.23372723]
[1754207438886,0.00824526,113950.0,113940.0,0.538626]
[1754207439114,0.00824526,113950.0,113940.0,1.23372723]
[1754207441089,0.02198586,113950.0,113940.0,1.23372723]
[1754207441680,0.0137406,113950.0,113940.0,0.538626]
[1754207441887,0.02196651,113950.0,113940.0,1.23372723]
[1754207442349,0.0137406,113950.0,113940.0,1.23372723]
[1754207445599,0.0137406,113950.0,113940.0,0.538626]
[1754207445801,0.0137406,113950.0,113940.0,1.23372723]
[1754207456276,0.02196678,113950.0,113940.0,1.23372723]
[1754207465639,0.02196678,113950.0,113940.0,1.92882846]
[1754207465844,0.02196678,113950.0,113940.0,1.23372723]
[1754207468020,0.02196678,113950.0,113940.0,0.538626]
[1754207468235,0.02196678,113950.0,113940.0,1.23372723]
[1754207469718,0.02196678,113950.0,113940.0,0.538626]
[1754207469933,0.02196678,113950.0,113940.0,1.23372723]
[1754207470730,0.02196678,113950.0,113940.0,0.538626]
[1754207470932,0.02196678,113950.0,113940.0,1.23372723]
[1754207471803,0.02196678,113950.0,113940.0,0.538626]
[1754207472012,0.02196678,113950.0,113940.0,1.23372723]
[1754207473061,0.02196678,113950.0,113940.0,0.538626]
[1754207473478,0.02196678,113950.0,113940.0,1.23372723]
[1754207476995,0.02196678,113950.0,113940.0,1.09988723]
[1754207477146,0.02196678,113950.0,113940.0,1.23408723]
[1754207481178,0.02198538,113950.0,113940.0,1.23408723]
[1754207487064,0.02198539,113950.0,113940.0,1.23408723]
[1754207492842,0.0219859,113950.0,113940.0,1.23408723]
[1754207499736,0.021644,113950.0,113940.0,1.23408723]
[1754207507298,0.02164479,113950.0,113940.0,1.23408723]
[1754207510236,0.02164471,113950.0,113940.0,1.23408723]
[1754207510646,0.02164471,113950.0,113940.0,0.538986]
[1754207510895,0.74338594,113950.0,113940.0,0.508646]
[1754207511411,0.71873594,113950.0,113940.0,0.534546]
[1754207511619,0.71873594,113950.0,113940.0,0.536256]
[1754207511961,0.71873594,113950.0,113940.0,0.531156]
[1754207512171,0.74338594,113950.0,113940.0,0.508206]
[1754207512594,0.74635594,113950.0,113940.0,0.508206]
[1754207512805,5.22326194,113950.0,113940.0,0.508206]
[1754207513843,5.22029194,113950.0,113940.0,0.508206]
[1754207514669,5.35405194,113950.0,113940.0,0.508206]
[1754207516218,4.65895071,113950.0,113940.0,0.508206]
[1754207516431,5.35405194,113950.0,113940.0,0.508206]
[1754207520735,5.35405194,113950.0,113940.0,0.532436]
[1754207522373,4.65895071,113950.0,113940.0,0.532436]
[1754207522585,5.35405194,113950.0,113940.0,0.532436]
[1754207523214,4.65895071,113950.0,113940.0,0.532436]
[1754207523438,5.35405194,113950.0,113940.0,0.532436]
[1754207523654,5.32939855,113950.0,113940.0,0.537446]
[1754207524884,4.63429732,113950.0,113940.0,0.537446]
[1754207525117,5.32939855,113950.0,113940.0,0.537446]
[1754207527464,5.12918685,113950.0,113940.0,0.537446]
[1754207527667,5.14292907,113950.0,113940.0,0.537446]
[1754207527874,5.12918685,113950.0,113940.0,0.537446]
[1754207530689,5.14292905,113950.0,113940.0,0.537446]
[1754207532037,5.16751905,113950.0,113940.0,0.537446]
[1754207532453,5.16751905,113950.0,113940.0,0.403686]
[1754207532671,5.16751905,113950.0,113940.0,0.537206]
[1754207533777,5.16751905,113950.0,113940.0,0.536206]
[1754207539709,5.16751905,113950.0,113940.0,0.402686]
[1754207539938,5.16751905,113950.0,113940.0,0.536166]
[1754207541309,5.15927643,113950.0,113940.0,0.536166]
[1754207541501,5.16752151,113950.0,113940.0,0.536166]
[1754207543847,4.47242028,113950.0,113940.0,0.536166]
[1754207544060,5.14293151,113950.0,113940.0,0.536166]
[1754207548466,4.44783028,113950.0,113940.0,0.536166]
[1754207548678,5.12918931,113950.0,113940.0,0.536166]
[1754207551384,5.14293151,113950.0,113940.0,0.536166]
[1754207552227,4.44783028,113950.0,113940.0,0.536166]
[1754207552433,5.14293151,113950.0,113940.0,0.536166]
[1754207556166,5.12918931,113950.0,113940.0,0.536166]
[1754207556505,4.95446431,113950.0,113940.0,0.536166]
[1754207558574,4.95446538,113950.0,113940.0,0.536166]
[1754207558946,4.96820758,113950.0,113940.0,0.536166]
[1754207560770,4.27310635,113950.0,113940.0,0.536166]
[1754207560930,4.96820758,113950.0,113940.0,0.536166]
[1754207561729,4.96820759,113950.0,113940.0,0.536166]
[1754207564611,4.83376759,113950.0,113940.0,0.536166]
[1754207564792,4.85778759,113950.0,113940.0,0.536166]
[1754207565927,4.99122759,113950.0,113940.0,0.509956]
[1754207566138,4.99122759,113950.0,113940.0,0.506926]
[1754207566139,5.01924726,113950.0,113940.0,0.506926]
[1754207567893,5.01924726,113950.0,113940.0,0.509996]
[1754207568905,5.00550506,113950.0,113940.0,0.509996]
[1754207571132,4.97748539,113950.0,113940.0,0.509996]
[1754207571500,4.99122786,113950.0,113940.0,0.509996]
[1754207571687,4.99122786,113950.0,113940.0,0.534736]
[1754207575186,4.97748539,113950.0,113940.0,0.534736]
[1754207577449,4.28238416,113950.0,113940.0,0.534736]
[1754207577656,4.97748539,113950.0,113940.0,0.536706]
[1754207577870,4.25836416,113950.0,113940.0,0.536706]
[1754207578078,4.95346539,113950.0,113940.0,0.536706]
[1754207578282,4.96720792,113950.0,113940.0,0.536706]
[1754207579260,4.98369465,113950.0,113940.0,0.536706]
[1754207583664,4.9836919,113950.0,113940.0,0.536706]
[1754207586328,4.96994937,113950.0,113940.0,0.536706]
[1754207589153,4.98369175,113950.0,113940.0,0.536706]
[1754207595186,4.98369568,113950.0,113940.0,0.536706]
[1754207597290,5.00812568,113950.0,113940.0,0.536706]
[1754207599986,5.00813114,113950.0,113940.0,0.536706]
[1754207604600,4.99438876,113950.0,113940.0,0.536706]
[1754207605643,4.99438876,113950.0,113940.0,0.506926]
[1754207608179,5.00813123,113950.0,113940.0,0.506926]
[1754207608392,5.00813123,113950.0,113940.0,0.510166]
[1754207608596,4.31303,113950.0,113940.0,0.510166]
[1754207608798,5.00813123,113950.0,113940.0,0.510166]
[1754207609571,4.31303,113950.0,113940.0,0.510166]
[1754207609796,5.00813123,113950.0,113940.0,0.510166]
[1754207609994,4.80377523,113950.0,113940.0,0.510166]
[1754207613055,4.80377523,113950.0,113940.0,0.533306]
[1754207617784,4.80377523,113950.0,113940.0,0.510166]
[1754207618390,4.80377516,113950.0,113940.0,0.510166]
[1754207618891,4.10867393,113950.0,113940.0,0.510166]
[1754207619170,4.80377516,113950.0,113940.0,0.510166]
[1754207621448,4.79003288,113950.0,113940.0,0.510166]
[1754207621909,4.79003288,113950.0,113940.0,0.533306]
[1754207622699,4.79003288,113950.0,113940.0,0.510166]
[1754207622904,4.81643288,113950.0,113940.0,0.510166]
[1754207623588,4.12133165,113950.0,113940.0,0.510166]
[1754207623764,4.81643288,113950.0,113940.0,0.510166]
[1754207624364,4.80377547,113950.0,113940.0,0.533306]
[1754207624562,4.8037755,113950.0,113940.0,0.533306]
[1754207625523,4.8037755,113950.0,113940.0,0.535376]
[1754207625927,4.8037755,113950.0,113940.0,0.538743]
[1754207628558,4.8037755,113950.0,113940.0,0.513533]
[1754207629218,4.8037755,113950.0,113940.0,0.536673]
[1754207630254,4.4855125,113950.0,113940.0,0.536673]
[1754207630602,4.4855125,113950.0,113940.0,0.538743]
[1754207631416,3.92381127,113950.0,113940.0,0.538743]
[1754207631589,4.6189125,113950.0,113940.0,0.538743]
[1754207636088,4.61890984,113950.0,113940.0,0.538743]
[1754207636544,3.92380861,113950.0,113940.0,0.538743]
[1754207636723,4.61890984,113950.0,113940.0,0.538743]
[1754207638929,4.61890984,113950.0,113940.0,0.536673]
[1754207639346,4.60516725,113950.0,113940.0,0.536673]
[1754207639760,4.60516725,113950.0,113940.0,0.538813]
[1754207640477,3.91006602,113950.0,113940.0,0.538813]
[1754207640690,4.60516725,113950.0,113940.0,0.538813]
[1754207641038,4.61890969,113950.0,113940.0,0.538813]
[1754207643181,3.79040846,113950.0,113940.0,0.538813]
[1754207643379,3.92380846,113950.0,113940.0,0.538813]
[1754207644326,4.61890969,113950.0,113940.0,0.538813]
[1754207645048,3.92380846,113950.0,113940.0,0.538813]
[1754207645202,4.60516725,113950.0,113940.0,0.538813]
[1754207647220,4.47176725,113950.0,113940.0,0.538813]
[1754207648247,4.48550959,113950.0,113940.0,0.538813]
[1754207654893,3.79040836,113950.0,113940.0,0.538813]
[1754207655034,4.48550959,113950.0,113940.0,0.538813]
[1754207659286,4.61890959,113950.0,113940.0,0.538813]
[1754207660030,4.61890804,113950.0,113940.0,0.538813]
[1754207662666,3.79040681,113950.0,113940.0,0.538813]
[1754207662810,4.61886804,113950.0,113940.0,0.538813]
[1754207663217,4.40146997,113950.0,113940.0,0.538813]
[1754207663461,0.86693904,113950.0,113940.0,0.538813]
[1754207663622,4.26811004,113950.0,113940.0,0.538813]
[1754207664692,4.40147004,113950.0,113940.0,0.405333]
[1754207664868,4.26811004,113950.0,113940.0,0.405333]
[1754207666625,3.57300881,113950.0,113940.0,0.405333]
[1754207666829,4.39326437,113950.0,113940.0,0.405333]
[1754207667072,4.40150956,113950.0,113940.0,0.405333]
[1754207668666,4.26810956,113950.0,113940.0,0.405333]
[1754207668867,4.40150956,113950.0,113940.0,0.405333]
[1754207669948,4.49034878,113950.0,113940.0,0.405333]
[1754207670177,4.40151122,113950.0,113940.0,0.405333]
[1754207675563,4.40151202,113950.0,113940.0,0.405333]
[1754207681091,4.40034918,113950.0,113940.0,0.405333]
[1754207684386,4.40034931,113950.0,113940.0,0.405333]
[1754207685143,3.70524808,113950.0,113940.0,0.405333]
[1754207685358,4.40034931,113950.0,113940.0,0.405333]
[1754207686551,4.40035118,113950.0,113940.0,0.405333]
[1754207686746,3.70524995,113950.0,113940.0,0.405333]
[1754207686956,4.40035118,113950.0,113940.0,0.405333]
[1754207688450,4.38777168,113950.0,113940.0,0.405333]
[1754207691546,4.40151336,113950.0,113940.0,0.405333]
[1754207691957,3.70641213,113950.0,113940.0,0.405333]
[1754207692157,3.57301213,113950.0,113940.0,1.10043423]
[1754207692517,0.03848113,113950.0,113940.0,1.10043423]
[1754207695355,0.03848113,113950.0,113940.0,0.72902823]
[1754207696108,0.03848113,113950.0,113940.0,0.86246823]
[1754207696405,0.02473945,113950.0,113940.0,0.86246823]
[1754207696866,0.03848095,113950.0,113940.0,0.86246823]
[1754207701846,0.03848095,113950.0,113940.0,0.167367]
[1754207704998,0.73358218,113950.0,113940.0,0.167367]
[1754207715458,0.02473563,113950.0,113940.0,0.167367]
[1754207715669,0.71983686,113950.0,113940.0,0.167367]
[1754207715875,0.73357888,113950.0,113940.0,0.167367]
[1754207716089,0.71983686,113950.0,113940.0,0.167367]
[1754207718277,0.69510123,113950.0,113940.0,0.167367]
[1754207718540,0.71983678,113950.0,113940.0,0.167367]
[1754207719209,0.73357841,113950.0,113940.0,0.167367]
[1754207720492,0.73357867,113950.0,113940.0,0.167367]
[1754207721199,0.73357879,113950.0,113940.0,0.167367]
[1754207721445,0.03847756,113950.0,113940.0,0.167367]
[1754207722102,0.03847756,113950.0,113940.0,0.165227]
[1754207723022,0.03847756,113950.0,113940.0,0.167387]
[1754207725210,0.73357879,113950.0,113940.0,0.167387]
[1754207727104,0.73357884,113950.0,113940.0,0.167387]
[1754207729905,0.73357888,113950.0,113940.0,0.167387]
[1754207737569,0.03847765,113950.0,113940.0,0.167387]
[1754207737738,0.73357888,113950.0,113940.0,0.167387]
[1754207741910,0.03847765,113950.0,113940.0,0.167387]
[1754207746559,0.73357888,113950.0,113940.0,0.167387]
[1754207747373,0.73358094,113950.0,113940.0,0.167387]
[1754207748652,4.26811194,113950.0,113940.0,0.161907]
[1754207748861,4.26811194,113950.0,113940.0,0.138767]
[1754207750083,4.26811194,113950.0,113940.0,0.168607]
[1754207753482,4.73584951,113950.0,113940.0,0.138767]
[1754207753699,4.67341295,113950.0,113940.0,0.138767]
[1754207754776,4.65967132,113950.0,113940.0,0.138767]
[1754207755198,4.64879132,113950.0,113940.0,0.138767]
[1754207755400,4.64879132,113950.0,113940.0,0.005407]
[1754207755607,4.78215132,113950.0,113940.0,0.005407]
[1754207756254,4.78214908,113950.0,113940.0,0.005407]
[1754207756477,4.87098664,113950.0,113940.0,0.005407]
[1754207756834,4.78214908,113950.0,113940.0,0.005407]
[1754207758147,4.79589131,113950.0,113940.0,0.005407]
[1754207760494,4.79589131,113950.0,113940.0,0.030917]
[1754207760698,4.10079008,113950.0,113940.0,0.034017]
[1754207760920,4.79589131,113950.0,113940.0,0.034017]
[1754207761147,4.79587409,113950.0,113940.0,0.034017]
[1754207768106,4.10077286,113950.0,113940.0,0.034017]
[1754207768348,4.79587409,113950.0,113940.0,0.034017]
[1754207770451,4.78213186,113950.0,113940.0,0.034017]
[1754207771627,4.75411185,113950.0,113940.0,0.034017]
[1754207773253,4.76785407,113950.0,113940.0,0.034017]
[1754207778307,4.7678542,113950.0,113940.0,0.034017]
[1754207783957,4.7678542,113950.0,113940.0,0.005407]
[1754207784157,4.89494177,113950.0,113940.0,0.005407]
[1754207784607,4.88119955,113950.0,113940.0,0.005407]
[1754207785016,4.79236199,113950.0,113940.0,0.005407]
[1754207785225,4.79236199,113950.0,113940.0,0.004407]
[1754207785438,4.79236199,113950.0,113940.0,0.003407]
[1754207785653,4.79336199,113950.0,113940.0,0.003407]
[1754207785839,4.79436199,113950.0,113940.0,0.003407]
[1754207786869,4.88319955,113950.0,113940.0,0.003407]
[1754207787282,4.79436199,113950.0,113940.0,0.003407]
[1754207787513,4.80810461,113950.0,113940.0,0.003407]
[1754207788029,4.82709868,113950.0,113940.0,0.003407]
[1754207789986,4.80038951,113950.0,113940.0,0.003407]
[1754207790158,4.81687294,113950.0,113940.0,0.003407]
[1754207791394,4.9057105,113950.0,113940.0,0.003407]
[1754207792597,4.81687294,113950.0,113940.0,0.003407]
[1754207793891,4.0937517,113950.0,113940.0,0.027657]
[1754207794200,4.78885293,113950.0,113940.0,0.030587]
[1754207796723,3.9603917,113950.0,113940.0,0.032557]
[1754207796940,4.07471763,113950.0,113940.0,0.032557]
[1754207797938,3.94139763,113950.0,113940.0,0.032557]
[1754207798118,4.63649886,113950.0,113940.0,0.032557]
[1754207801565,4.63649246,113950.0,113940.0,0.032557]
[1754207802111,4.76981246,113950.0,113940.0,0.032557]
[1754207805003,4.07471123,113950.0,113940.0,0.032557]
[1754207805245,4.76981246,113950.0,113940.0,0.032557]
[1754207806429,4.07471123,113950.0,113940.0,0.032557]
[1754207806642,4.76981246,113950.0,113940.0,0.032557]
[1754207810277,4.76981218,113950.0,113940.0,0.032557]
[1754207810761,4.81358235,113950.0,113940.0,0.032557]
[1754207811062,4.79983973,113950.0,113940.0,0.032557]
[1754207811478,4.75606956,113950.0,113940.0,0.032557]
[1754207813560,4.76981217,113950.0,113940.0,0.032557]
[1754207814420,4.75606956,113950.0,113940.0,0.032557]
[1754207815847,4.74783026,113950.0,113940.0,0.032557]
[1754207816050,4.75606917,113950.0,113940.0,0.032557]
[1754207817546,4.76981181,113950.0,113940.0,0.032557]
[1754207819739,4.07471058,113950.0,113940.0,0.032557]
[1754207820184,4.76981181,113950.0,113940.0,0.032557]
[1754207820953,4.07471058,113950.0,113940.0,0.032557]
[1754207821202,4.76981181,113950.0,113940.0,0.032557]
[1754207821596,4.56290781,113950.0,113940.0,0.032557]
[1754207823755,4.56291611,113950.0,113940.0,0.032557]
[1754207826126,3.86781488,113950.0,113940.0,0.032557]
[1754207826340,4.56291611,113950.0,113940.0,0.032557]
[1754207826759,3.86781488,113950.0,113940.0,0.032557]
[1754207826930,4.56291611,113950.0,113940.0,0.032557]
[1754207827143,4.56291611,113950.0,113940.0,0.024557]
[1754207829292,3.86781488,113950.0,113940.0,0.024557]
[1754207829505,4.56291611,113950.0,113940.0,0.024557]
[1754207829707,4.56292453,113950.0,113940.0,0.024557]
[1754207833476,4.53652353,113950.0,113940.0,0.024557]
[1754207838303,4.53652434,113950.0,113940.0,0.024557]
[1754207839422,4.6253619,113950.0,113940.0,0.022587]
[1754207839805,4.6253619,113950.0,113940.0,0.022627]
[1754207840010,4.53652434,113950.0,113940.0,0.024577]
[1754207840962,4.5365248,113950.0,113940.0,0.024577]
[1754207841280,4.53652485,113950.0,113940.0,0.024577]
[1754207846377,3.84142362,113950.0,113940.0,0.024577]
[1754207846609,4.53652485,113950.0,113940.0,0.024577]
[1754207848391,3.84142362,113950.0,113940.0,0.024577]
[1754207848635,4.53652485,113950.0,113940.0,0.024577]
[1754207853193,4.5365266,113950.0,113940.0,0.024577]
[1754207855387,4.62536416,113950.0,113940.0,0.024577]
[1754207857175,4.5365266,113950.0,113940.0,0.024577]
[1754207861468,4.5629296,113950.0,113940.0,0.024577]
[1754207867572,3.8678306,113950.0,113940.0,0.024577]
[1754207867772,4.56293183,113950.0,113940.0,0.024577]
[1754207869403,4.42961183,113950.0,113940.0,0.024577]
[1754207873348,4.42961396,113950.0,113940.0,0.024577]
[1754207884060,3.73451273,113950.0,113940.0,0.024577]
[1754207884261,0.40688573,113950.0,113940.0,0.71967823]
[1754207884467,0.38048273,113950.0,113940.0,0.71967823]
[1754207885029,0.02674009,113950.0,113940.0,0.71967823]
[1754207885425,0.02574009,113950.0,113940.0,0.71967823]
[1754207886211,0.02474009,113950.0,113940.0,0.71967823]
[1754207887030,0.02574009,113950.0,113940.0,0.71967823]
[1754207888072,0.03948153,113950.0,113940.0,0.71967823]
[1754207889708,0.01474144,113950.0,113940.0,0.71967823]
[1754207889915,0.03946511,113950.0,113940.0,0.71967823]
[1754207901107,0.03946297,113950.0,113940.0,0.024577]
[1754207901278,0.03946297,113950.0,113940.0,0.71967823]
[1754207901553,0.03946297,113950.0,113940.0,0.024577]
[1754207904448,0.03946513,113950.0,113940.0,0.024577]
[1754207905075,0.03946513,113950.0,113940.0,0.71967823]
[1754207905842,0.03946513,113950.0,113940.0,0.024577]
[1754207910349,0.03946457,113950.0,113940.0,0.024577]
[1754207911048,0.03946457,113950.0,113940.0,0.71967823]
[1754207911471,0.03946457,113950.0,113940.0,0.024577]
[1754207911643,0.03946457,113950.0,113940.0,0.71967823]
[1754207911849,0.03946457,113950.0,113940.0,0.024577]
[1754207913935,0.03946457,113950.0,113940.0,0.71967823]
[1754207920317,0.03946457,113950.0,113940.0,0.024577]
[1754207920535,0.03946457,113950.0,113940.0,0.71967823]
[1754207921919,0.03946483,113950.0,113940.0,0.71967823]
[1754207922501,0.03946483,113950.0,113940.0,0.024577]
[1754207922712,0.03946483,113950.0,113940.0,0.71967823]
[1754207925391,0.03946483,113950.0,113940.0,0.024577]
[1754207925589,0.03946483,113950.0,113940.0,0.71967823]
[1754207927639,0.03946605,113950.0,113940.0,0.71967823]
[1754207934607,0.03947048,113950.0,113940.0,0.71967823]
[1754207939221,0.022987,113950.0,113940.0,0.71967823]
[1754207939422,0.0394782,113950.0,113940.0,0.71967823]
[1754207939832,3.327627,113950.0,113940.0,0.71967823]
[1754207940486,4.02272823,113960.0,113940.0,0.71967823]
[1754207940685,3.327627,113950.0,113940.0,0.69709123]
[1754207940941,3.327627,113950.0,113940.0,0.83021123]
[1754207941308,3.327627,113950.0,113940.0,0.85648123]
[1754207943149,0.01374226,113950.0,113940.0,0.85648123]
[1754207944958,0.48996838,113960.0,113940.0,0.85648123]
[1754207945219,3.327627,113950.0,113940.0,0.69709123]
[1754207945413,3.327627,113950.0,113940.0,0.83017123]
[1754207945862,3.327627,113950.0,113940.0,0.85644123]
[1754207947418,0.34,113950.0,113940.0,0.85644123]
[1754207948340,0.35374211,113950.0,113940.0,0.85644123]
[1754207949697,0.35374211,113950.0,113940.0,0.16134]
[1754207949886,0.35374211,113950.0,113940.0,0.85644123]
[1754207950834,0.35374211,113950.0,113940.0,0.16134]
[1754207951822,0.37848,113950.0,113940.0,0.16134]
[1754207952846,0.37848,113950.0,113940.0,0.85644123]
[1754207955861,0.37848,113950.0,113940.0,0.16134]
[1754207956075,0.37848,113950.0,113940.0,0.85644123]
[1754207958503,0.37848004,113950.0,113940.0,0.85644123]
[1754207958718,0.37848004,113950.0,113940.0,0.72336123]
[1754207958934,0.37848004,113950.0,113940.0,0.85644123]
[1754207962736,0.37848004,113950.0,113940.0,0.02826]
[1754207962947,0.37848004,113950.0,113940.0,0.85644123]
[1754207964467,0.37848037,113950.0,113940.0,0.85644123]
[1754207967141,0.03848037,113950.0,113940.0,1.55154246]
[1754207967337,0.008246,113950.0,113940.0,1.55154246]
[1754207967547,0.008246,113950.0,113940.0,0.02826]
[1754207967946,0.008246,113950.0,113940.0,0.1613]